{"text_format":"3","workbook":"xlsx","n_sheets":1,"sheets":["BERENDEZÉS KÉSZLETLISTA"],"not_rendered":{"defined_names":5},"read":"whole","date_system":"1900"}

{"sheet":"BERENDEZÉS KÉSZLETLISTA","index":0,"n_rows":9,"n_cols":19,"rows_kept":9,"merged":[[0,1,0,5],[0,6,0,9],[0,10,0,12],[0,13,0,14],[2,1,2,6],[2,7,2,18]]}
[null,"BERENDEZÉS KÉSZLETLISTA"]
[]
[null,"FIZIKAI ÁLLAPOT",{"$nulls":5},"PÉNZÜGYI ADATOK"]
[null,"Eszköz- vagy sorozatszám","Elem leírása (márka és típus)","Helyszín","Állapot","Szállító","A lejáratig hátravan (év) ","Eredeti érték","Előleg","Vétel vagy kölcsönzés dátuma","Évre kölcsönözve","Hitelkamat","Havi törlesztés","Működési költségek/hó","Teljes havi költség","Várt érték a kölcsönidő lejárta után","Éves lineáris értékcsökkenés","Havi lineáris értékcsökkenés","Aktuális érték"]
[null,123,"Márka és típus","Központ","Jó","helyi",5,{"v":6000000,"d":"6,000,000.00 Ft"},{"v":1000000,"d":"1,000,000.00 Ft"},{"$f":"DATE(YEAR(TODAY())-2, 1,1)","v":"2016-01-01"},4,{"v":0.1,"d":"10.00%"},{"$f":"IFERROR(IF(AND(Adatok[[#This Row],[Eredeti érték]]>0,Adatok[[#This Row],[Eredeti érték]]<>Adatok[[#This Row],[Előleg]]),-1*PMT(Adatok[[#This Row],[Hitelkamat]]/12,Adatok[[#This Row],[Évre kölcsönözve]]*12,Adatok[[#This Row],[Eredeti érték]]-Adatok[[#This Row],[Előleg]]),0),0)","v":{"v":126812.91717373593,"d":"126,812.92 Ft"}},{"v":40000,"d":"40,000.00 Ft"},{"$f":"IFERROR(Adatok[[#This Row],[Működési költségek/hó]]+Adatok[[#This Row],[Havi törlesztés]],\"\")","v":{"v":166812.9171737359,"d":"166,812.92 Ft"}},{"v":4000000,"d":"4,000,000.00 Ft"},{"$f":"IFERROR(IF(Adatok[[#This Row],[Eredeti érték]]>0,SLN(Adatok[[#This Row],[Eredeti érték]],Adatok[[#This Row],[Várt érték a kölcsönidő lejárta után]],Adatok[[#This Row],[A lejáratig hátravan (év) ]]),0),0)","v":{"v":400000,"d":"400,000.00 Ft"}},{"$f":"IFERROR(Adatok[[#This Row],[Éves lineáris értékcsökkenés]]/12,0)","v":{"v":33333.333333333336,"d":"33,333.33 Ft"}},{"$f":"IFERROR(Adatok[[#This Row],[Eredeti érték]]-(Adatok[[#This Row],[Éves lineáris értékcsökkenés]]*((TODAY()-Adatok[[#This Row],[Vétel vagy kölcsönzés dátuma]])/365)),0)","v":{"v":5002739.726027397,"d":"5,002,739.73 Ft"}}]
[null,456,"Márka és típus","Központ","Kiváló","helyi",3,{"v":1000000,"d":"1,000,000.00 Ft"},{"v":1000000,"d":"1,000,000.00 Ft"},{"$f":"DATE(YEAR(TODAY())-1, 1,1)","v":"2017-01-01"},null,null,{"$f":"IFERROR(IF(AND(Adatok[[#This Row],[Eredeti érték]]>0,Adatok[[#This Row],[Eredeti érték]]<>Adatok[[#This Row],[Előleg]]),-1*PMT(Adatok[[#This Row],[Hitelkamat]]/12,Adatok[[#This Row],[Évre kölcsönözve]]*12,Adatok[[#This Row],[Eredeti érték]]-Adatok[[#This Row],[Előleg]]),0),0)","v":{"v":0,"d":"0.00 Ft"}},{"v":4000,"d":"4,000.00 Ft"},{"$f":"IFERROR(Adatok[[#This Row],[Működési költségek/hó]]+Adatok[[#This Row],[Havi törlesztés]],\"\")","v":{"v":4000,"d":"4,000.00 Ft"}},null,{"$f":"IFERROR(IF(Adatok[[#This Row],[Eredeti érték]]>0,SLN(Adatok[[#This Row],[Eredeti érték]],Adatok[[#This Row],[Várt érték a kölcsönidő lejárta után]],Adatok[[#This Row],[A lejáratig hátravan (év) ]]),0),0)","v":{"v":333333.3333333333,"d":"333,333.33 Ft"}},{"$f":"IFERROR(Adatok[[#This Row],[Éves lineáris értékcsökkenés]]/12,0)","v":{"v":27777.777777777777,"d":"27,777.78 Ft"}},{"$f":"IFERROR(Adatok[[#This Row],[Eredeti érték]]-(Adatok[[#This Row],[Éves lineáris értékcsökkenés]]*((TODAY()-Adatok[[#This Row],[Vétel vagy kölcsönzés dátuma]])/365)),0)","v":{"v":503196.34703196347,"d":"503,196.35 Ft"}}]
[null,789,"Márka és típus","Dunántúl","Megfelelő","helyi",6,{"v":10000000,"d":"10,000,000.00 Ft"},{"v":4000000,"d":"4,000,000.00 Ft"},{"$f":"TODAY()","v":"2018-06-29"},5,{"v":0.05,"d":"5.00%"},{"$f":"IFERROR(IF(AND(Adatok[[#This Row],[Eredeti érték]]>0,Adatok[[#This Row],[Eredeti érték]]<>Adatok[[#This Row],[Előleg]]),-1*PMT(Adatok[[#This Row],[Hitelkamat]]/12,Adatok[[#This Row],[Évre kölcsönözve]]*12,Adatok[[#This Row],[Eredeti érték]]-Adatok[[#This Row],[Előleg]]),0),0)","v":{"v":113227.40186406561,"d":"113,227.40 Ft"}},{"v":8000,"d":"8,000.00 Ft"},{"$f":"IFERROR(Adatok[[#This Row],[Működési költségek/hó]]+Adatok[[#This Row],[Havi törlesztés]],\"\")","v":{"v":121227.40186406561,"d":"121,227.40 Ft"}},{"v":300000,"d":"300,000.00 Ft"},{"$f":"IFERROR(IF(Adatok[[#This Row],[Eredeti érték]]>0,SLN(Adatok[[#This Row],[Eredeti érték]],Adatok[[#This Row],[Várt érték a kölcsönidő lejárta után]],Adatok[[#This Row],[A lejáratig hátravan (év) ]]),0),0)","v":{"v":1616666.6666666667,"d":"1,616,666.67 Ft"}},{"$f":"IFERROR(Adatok[[#This Row],[Éves lineáris értékcsökkenés]]/12,0)","v":{"v":134722.22222222222,"d":"134,722.22 Ft"}},{"$f":"IFERROR(Adatok[[#This Row],[Eredeti érték]]-(Adatok[[#This Row],[Éves lineáris értékcsökkenés]]*((TODAY()-Adatok[[#This Row],[Vétel vagy kölcsönzés dátuma]])/365)),0)","v":{"v":10000000,"d":"10,000,000.00 Ft"}}]
[{"$nulls":12},{"$f":"IFERROR(IF(AND(Adatok[[#This Row],[Eredeti érték]]>0,Adatok[[#This Row],[Eredeti érték]]<>Adatok[[#This Row],[Előleg]]),-1*PMT(Adatok[[#This Row],[Hitelkamat]]/12,Adatok[[#This Row],[Évre kölcsönözve]]*12,Adatok[[#This Row],[Eredeti érték]]-Adatok[[#This Row],[Előleg]]),0),0)","v":{"v":0,"d":"0.00 Ft"}},null,{"$f":"IFERROR(Adatok[[#This Row],[Működési költségek/hó]]+Adatok[[#This Row],[Havi törlesztés]],\"\")","v":{"v":0,"d":"0.00 Ft"}},null,{"$f":"IFERROR(IF(Adatok[[#This Row],[Eredeti érték]]>0,SLN(Adatok[[#This Row],[Eredeti érték]],Adatok[[#This Row],[Várt érték a kölcsönidő lejárta után]],Adatok[[#This Row],[A lejáratig hátravan (év) ]]),0),0)","v":{"v":0,"d":"0.00 Ft"}},{"$f":"IFERROR(Adatok[[#This Row],[Éves lineáris értékcsökkenés]]/12,0)","v":{"v":0,"d":"0.00 Ft"}},{"$f":"IFERROR(Adatok[[#This Row],[Eredeti érték]]-(Adatok[[#This Row],[Éves lineáris értékcsökkenés]]*((TODAY()-Adatok[[#This Row],[Vétel vagy kölcsönzés dátuma]])/365)),0)","v":{"v":0,"d":"0.00 Ft"}}]
[{"$nulls":12},{"$f":"IFERROR(IF(AND(Adatok[[#This Row],[Eredeti érték]]>0,Adatok[[#This Row],[Eredeti érték]]<>Adatok[[#This Row],[Előleg]]),-1*PMT(Adatok[[#This Row],[Hitelkamat]]/12,Adatok[[#This Row],[Évre kölcsönözve]]*12,Adatok[[#This Row],[Eredeti érték]]-Adatok[[#This Row],[Előleg]]),0),0)","v":{"v":0,"d":"0.00 Ft"}},null,{"$f":"IFERROR(Adatok[[#This Row],[Működési költségek/hó]]+Adatok[[#This Row],[Havi törlesztés]],\"\")","v":{"v":0,"d":"0.00 Ft"}},null,{"$f":"IFERROR(IF(Adatok[[#This Row],[Eredeti érték]]>0,SLN(Adatok[[#This Row],[Eredeti érték]],Adatok[[#This Row],[Várt érték a kölcsönidő lejárta után]],Adatok[[#This Row],[A lejáratig hátravan (év) ]]),0),0)","v":{"v":0,"d":"0.00 Ft"}},{"$f":"IFERROR(Adatok[[#This Row],[Éves lineáris értékcsökkenés]]/12,0)","v":{"v":0,"d":"0.00 Ft"}},{"$f":"IFERROR(Adatok[[#This Row],[Eredeti érték]]-(Adatok[[#This Row],[Éves lineáris értékcsökkenés]]*((TODAY()-Adatok[[#This Row],[Vétel vagy kölcsönzés dátuma]])/365)),0)","v":{"v":0,"d":"0.00 Ft"}}]